[Event "Austrian Championship 2022"]
[Site "Vienna"]
[Date "2022.08.14"]
[Round "3.6"]
[White "Hengl, Philip"]
[Black "Kristoferitsch, Daniel"]
[Result "0-1"]
[ECO "B42"]
[WhiteElo "1968"]
[BlackElo "2312"]
[Annotator "TA"]
[PlyCount "72"]
[EventDate "2022.08.12"]
[EventType "swiss"]
[EventCountry "AUT"]
[SourceTitle "playchess.com"]
[Source "ChessBase"]
[SourceQuality "1"]
[TimeControl "40/5400+30:1800+30"]

{[%evp 14,72,57,33,46,35,49,39,50,35,32,35,50,53,64,52,61,79,60,15,48,27,30,11,24,33,48,-13,-27,-9,0,-39,-37,-104,0,0,-90,-137,120,-34,-30,-28,-26,-24,-57,-33,0,0,-2,-7,52,8,8,8,8,-357,-347,-298,-335,-269,-265]} 1. e4 {[%emt 0:00:01] Metz Alekhine/Primel,D} c5 {[%emt 0:00:10]} 2. Nf3 {[%emt 0:00:06]} e6 {[%emt 0:00:08]} 3. d4 {[%emt 0:00:05]} cxd4 {[%emt 0:00:05]} 4. Nxd4 {[%emt 0:00:06]} a6 {[%emt 0:00:08]} 5. Bd3 {[%emt 0:00:11]} Bc5 {[%emt 0:00:07]} 6. Nb3 {[%emt 0:00:11]} Be7 {[%emt 0:00:04]} 7. Qg4 {[%emt 0:00:08]} g6 {[%emt 0:00:07]} 8. Qe2 {[%emt 0:00:05]} d6 {[%emt 0:00:09] B42: Sicilian: Kan Variation: 5 Bd3.} 9. Nc3 {[%emt 0:03:35]} Qc7 {[%emt 0:00:59]} 10. Bd2 {[%emt 0:01:46]} Nd7 {[%emt 1:33:33][%cal Bb8d7,Bd7c5,Bc5d3][%mdl 32] White is slightly better.} 11. O-O-O {[%emt 0:01:04]} b5 {[%emt 0:00:00]} 12. a3 {[%emt 0:01:29]} Bb7 {[%emt 0:00:00]} 13. Kb1 {[%emt 0:05:14] [#]} Rc8 $146 {[%emt 0:00:00]} ({Predecessor:} 13... Ngf6 14. Bh6 Ne5 15. f4 Nc4 16. Bxc4 Qxc4 17. Qxc4 bxc4 18. Na5 Nxe4 19. Nxb7 Nxc3+ 20. bxc3 {0-1 (42) Vaibhav,S (2494)-Korneev,O (2597) Metz 2012 EXT 2013 [Metz Alekhine/Primel,D]}) 14. f4 {[%emt 0:03:22]} Ngf6 {[%emt 0:00:00]} 15. g4 {[%emt 0:05:26]} Nc5 {[%emt 0:00:00]} 16. Rhe1 {[%emt 0:04:34]} Nfd7 {[%emt 0:00:00]} 17. g5 {[%emt 0:16:50][%cal Oc3d5] White wants to play Nd5!} O-O {[%emt 0:00:00]} 18. h4 {[%emt 0:04:19][%cal Bh2h4,Bh4h5][%mdl 32]} Rfe8 {[%emt 0:00:00]} 19. h5 {[%emt 0:04:16]} Bf8 {[%emt 0:00:00]} 20. Qf2 {[%emt 0:06:37]} ({White should try} 20. Rc1 $14) 20... Nxd3 $11 {[%emt 0:00:00]} 21. cxd3 {[%emt 0:00:19]} Nc5 $1 {[%emt 0:00:00]} ({Don't play} 21... gxh5 22. Rh1 $14) 22. Nxc5 {[%emt 0:04:45]} dxc5 {[%emt 0:00:00]} 23. f5 {[%emt 0:00:26]} (23. hxg6 $15 fxg6 24. Be3) 23... b4 {[%emt 0:00:00]} 24. hxg6 {[%emt 0:03:41]} fxg6 {[%emt 0:00:00]} 25. Ne2 {[%emt 0:07:26]} (25. fxg6 $142 bxc3 26. gxh7+ Kh8 27. Bxc3+ Bg7 28. Bf6) 25... c4 $2 {[%emt 0:00:00][%mdl 8192]} (25... exf5 $17 {and life is bright.} 26. exf5 Qd7) 26. Bxb4 $2 {[%emt 0:02:27]} (26. fxg6 $1 $16 hxg6 27. Bxb4) 26... Bxb4 $15 {[%emt 0:00:00]} (26... cxd3 {is interesting.} 27. Nc3 exf5 28. exf5 Rxe1 29. Rxe1 Bxb4 30. axb4 gxf5 31. Qxf5 d2) 27. axb4 {[%emt 0:00:06] And now fxg6 would win.} cxd3 {[%emt 0:00:00]} 28. Nc3 {[%emt 0:00:04] aiming for fxg6.} exf5 {[%emt 0:00:00]} 29. exf5 {[%emt 0:00:15]} gxf5 {[%emt 0:00:00] Hoping for ...Rxe1.} 30. Rxe8+ {[%emt 0:05:21]} Rxe8 {[%emt 0:00:00]} 31. Qxf5 {[%emt 0:02:19] [#]} Re3 {[%emt 0:00:00]} (31... Be4 $1 $11 32. Qc5 Qb7) 32. Rxd3 {[%emt 0:05:25]} (32. Rf1 $5 {[%cal Rf5f8]} Qe7 33. g6 $14) 32... Re1+ {[%emt 0:00:01]} 33. Ka2 {[%emt 0:01:41] Threatens to win with Rd7.} Bc8 {[%emt 0:00:11] Against Rd7} 34. Qc5 {[%emt 0:01:49][%mdl 8192]} (34. Qf2 $11 {and White has nothing to worry.} Qf7+ 35. Qxf7+ Kxf7 36. Rd6) 34... Be6+ $19 {[%emt 0:00:17]} 35. Nd5 {[%emt 0:00:42] [#]} Qxc5 {[%emt 0:00:21]} 36. bxc5 {[%emt 0:00:14]} Re5 $1 {[%emt 0:00:07][%csl LRd5,LRg5] Weighted Error Value: White=0.44/Black=0.30} 0-1

[Event "Austrian Championship 2022"]
[Site "Vienna"]
[Date "2022.08.14"]
[Round "3.7"]
[White "Exler, Veronika"]
[Black "Kuntner, Reinhard"]
[Result "1-0"]
[ECO "A30"]
[WhiteElo "2132"]
[BlackElo "2010"]
[Annotator "RC"]
[PlyCount "107"]
[EventDate "2022.08.12"]
[EventType "swiss"]
[EventCountry "AUT"]
[SourceTitle "playchess.com"]
[Source "ChessBase"]
[SourceQuality "1"]
[TimeControl "40/5400+30:1800+30"]

1. d4 {[%emt 0:00:02]} d5 {[%emt 0:00:18]} 2. Nf3 {[%emt 0:00:06]} Nf6 {[%emt 0:00:06]} 3. g3 {[%emt 0:00:04]} c5 {[%emt 0:01:52]} 4. Bg2 {[%emt 0:00:05]} Nc6 {[%emt 0:01:16]} 5. O-O {[%emt 0:00:07]} Bf5 {[%emt 0:04:00]} 6. c4 {[%emt 0:00:44]} e6 {[%emt 0:02:40]} 7. cxd5 {[%emt 0:01:05]} Nxd5 {[%emt 0:03:45]} 8. Nc3 {[%emt 0:09:41]} Nxc3 {[%emt 0:01:52]} 9. bxc3 {[%emt 0:01:00]} Be7 {[%emt 0:08:55]} 10. Be3 {[%emt 0:23:55]} O-O {[%emt 0:02:11]} 11. dxc5 {[%emt 0:01:59]} Qa5 {[%emt 0:00:45]} 12. Nd4 {[%emt 0:08:05]} Rfd8 {[%emt 0:40:43]} 13. Bxc6 {[%emt 0:16:29]} bxc6 {[%emt 0:00:07]} 14. Nxc6 {[%emt 0:00:05]} Rxd1 {[%emt 0:00:14]} 15. Nxa5 {[%emt 0:00:07]} Rd5 {[%emt 0:01:52]} 16. c4 {[%emt 0:01:26]} Rd7 {[%emt 0:00:33]} 17. Rad1 {[%emt 0:19:27]} Rc7 {[%emt 0:02:08]} 18. Nb3 {[%emt 0:00:04]} e5 {[%emt 0:00:21]} 19. f4 {[%emt 0:01:54]} Be6 {[%emt 0:02:21]} 20. Rd5 {[%emt 0:02:55]} exf4 {[%emt 0:01:54]} 21. gxf4 {[%emt 0:02:00]} g6 {[%emt 0:01:14]} 22. f5 {[%emt 0:03:25]} gxf5 {[%emt 0:00:52]} 23. Kh1 {[%emt 0:02:59]} f6 {[%emt 0:04:58]} 24. Rc1 {[%emt 0:00:41]} Kf7 {[%emt 0:03:04]} 25. Rd3 {[%emt 0:00:36]} Rac8 {[%emt 0:01:29]} 26. Bf4 {[%emt 0:01:28]} Rc6 {[%emt 0:02:27]} 27. Be3 {[%emt 0:01:56]} Ra6 {[%emt 0:03:25]} 28. Rd2 {[%emt 0:00:52]} Ra3 {[%emt 0:00:40]} 29. Bf4 {[%emt 0:00:32]} Bxc5 {[%emt 0:01:16]} 30. Nxc5 {[%emt 0:00:12]} Rxc5 {[%emt 0:00:41]} 31. Bd6 {[%emt 0:00:05]} Raa5 {[%emt 0:00:09]} 32. Bxc5 {[%emt 0:00:19]} Rxc5 {[%emt 0:00:01]} 33. Rdc2 {[%emt 0:00:42]} f4 {[%emt 0:00:47]} 34. Kg2 {[%emt 0:00:29]} Kg6 {[%emt 0:00:09]} 35. Kf3 {[%emt 0:00:52]} Kf5 {[%emt 0:00:12]} 36. Rc3 {[%emt 0:00:52]} Bf7 {[%emt 0:00:23]} 37. Kf2 {[%emt 0:01:02]} Ke4 {[%emt 0:00:14]} 38. Rh3 {[%emt 0:00:29]} h5 {[%emt 0:00:18]} 39. Ra3 {[%emt 0:00:33]} a5 {[%emt 0:00:26]} 40. Rac3 {[%emt 0:00:22]} Be6 {[%emt 0:00:34]} 41. e3 {[%emt 0:13:24]} f3 {[%emt 0:02:35]} 42. Rd1 {[%emt 0:00:15]} Rc7 {[%emt 0:07:22]} 43. Rd4+ {[%emt 0:00:24]} Ke5 {[%emt 0:00:02]} 44. Kxf3 {[%emt 0:00:47]} Bg4+ {[%emt 0:01:27]} 45. Kf2 {[%emt 0:01:50]} Be6 {[%emt 0:00:31]} 46. Ra3 {[%emt 0:05:16]} Ra7 {[%emt 0:04:38]} 47. Rb3 {[%emt 0:02:54]} f5 {[%emt 0:00:17]} 48. Ke2 {[%emt 0:02:23]} Ra6 {[%emt 0:01:40]} 49. Kd3 {[%emt 0:00:13]} Kf6 {[%emt 0:00:32]} 50. a3 {[%emt 0:01:19]} Bf7 {[%emt 0:03:04]} 51. Rb8 {[%emt 0:00:57]} Rc6 {[%emt 0:00:31]} 52. Rb5 {[%emt 0:01:09]} Ra6 {[%emt 0:01:11]} 53. c5 {[%emt 0:00:26]} Kg5 {[%emt 0:02:02]} 54. h4+ {[%emt 0:00:11]} 1-0

[Event "Austrian Championship 2022"]
[Site "Vienna"]
[Date "2022.08.14"]
[Round "3.7"]
[White "Scheffknecht, Philipp"]
[Black "Schreiner, Peter"]
[Result "0-1"]
[ECO "A05"]
[WhiteElo "2093"]
[BlackElo "2416"]
[Annotator "TA"]
[PlyCount "80"]
[EventDate "2022.08.12"]
[EventType "swiss"]
[EventCountry "AUT"]
[SourceTitle "playchess.com"]
[Source "ChessBase"]
[SourceQuality "1"]
[TimeControl "40/5400+30:1800+30"]

{[%evp 16,80,0,0,14,-5,-12,-60,-50,-46,-32,-58,-75,-93,-91,-91,-40,-62,-53,-158,-165,-170,-153,-167,-177,-164,-182,-148,-139,-170,-31,-27,-27,-24,0,-182,-182,-182,-182,-406,-364,-456,-448,-630,-610,-711,-714,-728,-708,-902,-865,-818,-611,-1456,-980,-978,-930,-961,-943,-916,-909,-2204,-1832,-2280,-2218,-1791,-1765]} 1. Nf3 {[%emt 0:04:20]} Nf6 {[%emt 0:02:11]} 2. g3 {[%emt 0:01:14]} d5 {[%emt 0:01:36]} 3. Bg2 {[%emt 0:00:19]} c5 {[%emt 0:00:27]} 4. O-O {[%emt 0:00:28]} g6 {[%emt 0:01:39]} 5. b3 {[%emt 0:01:51]} Bg7 {[%emt 0:00:49]} 6. Bb2 {[%emt 0:00:07]} O-O {[%emt 0:03:45]} 7. e3 {[%emt 0:01:33]} Nc6 {[%emt 0:05:10]} 8. d4 {[%emt 0:12:48]} Ne4 {[%emt 0:04:53]} 9. Nbd2 {[%emt 0:10:14]} Qa5 {[%emt 0:06:11] A05: Réti Opening: 1 Nf3 Nf6.} 10. Nxe4 {[%emt 0:25:34]} dxe4 {[%emt 0:00:09]} 11. Nd2 {[%emt 0:00:59]} (11. Ne5 $11) 11... cxd4 $15 {[%emt 0:03:15] Black is slightly better.} 12. exd4 {[%emt 0:01:16]} Nxd4 {[%emt 0:02:47] [#] aiming for ...f5.} 13. Bxe4 $146 {[%emt 0:01:47]} ({Predecessor:} 13. Nc4 Qc5 14. Bxe4 Bh3 15. Re1 Rad8 16. c3 Ne6 17. Qe2 b5 18. Na5 Qg5 19. Rad1 {1-0 (33) Almer,G (2124)-Rohler,S (2168) Austria 2017}) 13... Rd8 {[%emt 0:21:00][%cal Od4e2]} 14. Nc4 {[%emt 0:04:32]} Qc7 {[%emt 0:06:01][%cal Od4b3] Black is more active.} 15. c3 {[%emt 0:04:03] [#]} Ne6 {[%emt 0:04:14]} (15... Nxb3 $1 $17 16. Qxb3 Be6 17. Qxb7 Qxc4) 16. Qe2 {[%emt 0:01:32]} Nc5 {[%emt 0:02:11]} 17. Rfe1 {[%emt 0:04:48]} (17. Bf3 $15) 17... Nxe4 $17 {[%emt 0:06:32]} 18. Qxe4 {[%emt 0:00:09] [#]} b5 $1 {[%emt 0:03:44]} 19. Qxa8 {[%emt 0:12:31][%cal Oa1d1] [#] Hoping for Rad1!} (19. Na3 Ba6) 19... Bb7 $1 {[%emt 0:00:11] This bishop pair is nice.} 20. Qxd8+ {[%emt 0:00:09]} Qxd8 {[%emt 0:00:09]} 21. Rad1 {[%emt 0:00:47] Inhibits Qd5.} Qc7 {[%emt 0:02:02]} 22. Ne3 {[%emt 0:05:27]} h5 $40 {[%emt 0:06:42][%mdl 128] Black has some attack.} ({Stronger than} 22... Bxc3 23. Bxc3 Qxc3 24. h3 $17) ({Not} 22... b4 23. Nd5 Bxd5 24. Rxd5 $17) (22... e6 $19 {White must now prevent ...h5.} 23. Nc2 g5) 23. Nd5 $15 {[%emt 0:01:54]} Bxd5 {[%emt 0:00:09]} 24. Rxd5 {[%emt 0:00:04]} b4 {[%emt 0:00:18][%cal Bb5b4,Bb4c3][%mdl 32]} (24... h4 $5) 25. Rd2 $2 {[%emt 0:02:26] Black converts the advantage convincingly.} (25. Rc1 $11 {and White is okay.}) 25... bxc3 $19 {[%emt 0:02:25]} 26. Rc2 {[%emt 0:00:44][%cal Ob2c3]} Qa5 {[%emt 0:02:09]} 27. Bc1 {[%emt 0:01:50]} (27. Ba1) 27... h4 {[%emt 0:05:14]} 28. gxh4 {[%emt 0:00:31]} Qf5 {[%emt 0:01:33] Black is clearly winning.} 29. Ree2 {[%emt 0:00:18]} (29. Rce2 $142 Bd4 30. Bg5) 29... Bd4 {[%emt 0:01:14]} 30. Be3 {[%emt 0:00:42]} e5 {[%emt 0:00:59]} 31. Bg5 {[%emt 0:00:31]} f6 {[%emt 0:01:39]} 32. Bc1 {[%emt 0:00:26]} Qg4+ {[%emt 0:00:54]} 33. Kh1 {[%emt 0:00:23]} Qxh4 {[%emt 0:00:27]} 34. Ba3 {[%emt 0:00:40]} Qg4 {[%emt 0:01:22]} 35. Bb4 {[%emt 0:00:32]} Qf3+ {[%emt 0:00:23]} 36. Kg1 {[%emt 0:00:06]} Qd3 {[%emt 0:00:49]} 37. Kg2 {[%emt 0:00:53]} e4 {[%emt 0:01:12] Strongly threatening ...f5.} 38. Bd6 {[%emt 0:00:30]} g5 {[%emt 0:00:32] Threatens to win with ...f5.} 39. Kf1 {[%emt 0:00:30]} Qd1+ {[%emt 0:01:09]} 40. Kg2 {[%emt 0:00:06]} f5 {[%emt 0:00:11] Weighted Error Value: White=0.95/Black=0.28 (precise)} 0-1

[Event "Austrian Championship 2022"]
[Site "Vienna"]
[Date "2022.08.14"]
[Round "3.8"]
[White "Leisch, Lukas"]
[Black "Nolz, Tom"]
[Result "1-0"]
[ECO "A28"]
[WhiteElo "2404"]
[BlackElo "2230"]
[Annotator "TA"]
[PlyCount "117"]
[EventDate "2022.08.12"]
[EventType "swiss"]
[EventCountry "AUT"]
[SourceTitle "playchess.com"]
[Source "ChessBase"]
[SourceQuality "1"]
[TimeControl "40/5400+30:1800+30"]

{[%evp 10,117,0,-11,-16,-21,-16,-33,0,0,0,0,-7,-6,19,20,27,-13,-16,-52,0,-29,0,-10,0,-63,-52,-64,-35,-82,-45,-50,-43,-169,-175,-179,-60,-187,-101,-122,-97,-127,-110,-134,-133,-189,-167,-145,-188,-169,-157,-150,-59,-48,-62,-72,-102,-70,-83,-60,-96,-121,-4,-111,-107,-152,-36,-36,-36,-133,-140,-388,-336,-458,-467,-425,-472,-466,-473,-478,-470,-478,0,0,0,0,0,0,471,558,490,552,454,372,728,675,562,0,214,0,534,353,1400,1966,2064,2056,1520,1379,12841,12839]} 1. c4 {[%emt 0:00:06]} Nf6 {[%emt 0:00:12]} 2. Nc3 {[%emt 0:01:10]} e5 {[%emt 0:01:13]} 3. d3 {[%emt 0:00:45]} d5 {[%emt 0:00:38]} 4. cxd5 {[%emt 0:00:07]} Nxd5 {[%emt 0:00:07]} 5. Nf3 {[%emt 0:00:30]} Nc6 {[%emt 0:00:19]} 6. a3 {[%emt 0:03:18]} Be7 {[%emt 0:00:49] A28: English Opening: Four Knights Variation.} 7. g3 {[%emt 0:02:09] was the old line (7.e3).} Be6 {[%emt 0:05:55]} 8. Bg2 {[%emt 0:01:02]} Nxc3 {[%emt 0:03:22] Black is slightly better.} 9. bxc3 {[%emt 0:00:13]} e4 {[%emt 0:00:05] [#]} 10. dxe4 $146 {[%emt 0:16:33]} (10. Nd4 {keeps more tension.} Nxd4 11. cxd4 Qxd4 12. Be3) ({Predecessor:} 10. Nd4 Nxd4 11. cxd4 Qxd4 12. Be3 Qc3+ 13. Bd2 Qb2 14. Bxe4 Bb3 15. Qb1 Qxb1+ 16. Rxb1 {1-0 (31) De Freytas,P (1787)-Bekker,M (1623) Spijkenisse 2010}) 10... Qxd1+ {[%emt 0:00:20]} 11. Kxd1 {[%emt 0:00:02]} Bb3+ {[%emt 0:00:23]} (11... O-O-O+ {is more complex.} 12. Kc2 Bc5 13. e3 Na5) 12. Ke1 {[%emt 0:00:08]} O-O-O {[%emt 0:00:07][%csl Gb3][%cal Rd8d1]} 13. Bb2 {[%emt 0:05:50]} Na5 {[%emt 0:12:49]} 14. c4 {[%emt 0:25:18]} Nxc4 {[%emt 0:03:16]} (14... Rhg8 $15 15. Nd2 Nxc4 16. Nxb3 Nxb2) 15. Bxg7 {[%emt 0:01:12]} Rhg8 {[%emt 0:08:50]} 16. Bc3 {[%emt 0:00:12]} Kb8 {[%emt 0:09:43]} (16... Bxa3 17. Nd4 Ba4 18. f4 $14) 17. h4 {[%emt 0:03:03]} (17. Nd4 $11 Ba4 18. Nf5) 17... Nxa3 $15 {[%emt 0:02:00] aiming for ...Nc2+.} (17... Bxa3 18. Ng5 $11) 18. Kf1 $1 {[%emt 0:00:03]} Nb5 {[%emt 0:03:51]} 19. Be5 {[%emt 0:02:17]} (19. Bd2 $15 {was preferrable.}) 19... a5 {[%emt 0:01:38]} 20. Bh3 $1 {[%emt 0:01:10]} a4 $36 {[%emt 0:01:58][%mdl 2048] Black has good play.} 21. h5 {[%emt 0:00:13]} (21. Kg2 $1 $15) 21... f6 $19 {[%emt 0:12:09]} 22. Bf4 {[%emt 0:00:12]} a3 {[%emt 0:07:05]} ({Better is} 22... Rd1+ $1 $19 23. Rxd1 Bxd1) 23. Bf5 {[%emt 0:00:52]} (23. Kg2 $1 $15) 23... Bb4 {[%emt 0:03:39]} (23... Rd1+ $1 $19 24. Kg2 Rxh1 25. Rxh1 a2 26. Bxh7 Rh8) 24. Kg2 $17 {[%emt 0:01:46]} Bc3 $1 {[%emt 0:03:28]} 25. Rab1 {[%emt 0:00:28]} Bc4 {[%emt 0:04:45]} 26. Rbc1 {[%emt 0:00:26]} Rg7 {[%emt 0:07:38]} 27. e5 {[%emt 0:01:20]} (27. h6 $17 Re7 28. Bd2 Bxd2 29. Rxc4) 27... Bxe2 $19 {[%emt 0:00:34]} 28. Rxc3 {[%emt 0:03:26]} Nxc3 {[%emt 0:00:33]} 29. exf6 {[%emt 0:00:02]} Rf7 {[%emt 0:02:32]} 30. Be5 {[%emt 0:00:56] Hoping for Ng5.} Rd5 {[%emt 0:02:28]} (30... Nd5 $1 $17 {...Re8 is the strong threat.} 31. Ng5 Rxf6 32. Bxh7 Rh6) 31. Be6 $15 {[%emt 0:12:48]} Bxf3+ {[%emt 0:00:18]} 32. Kxf3 {[%emt 0:00:01] [#]} Rxe5 {[%emt 0:00:09]} 33. Bxf7 {[%emt 0:00:04][%mdl 4096] Endgame And now g4 would win. KRB-KRN} Rf5+ {[%emt 0:00:03]} 34. Ke3 {[%emt 0:00:07]} Rxf6 {[%emt 0:00:03]} 35. Bg8 {[%emt 0:00:07]} h6 {[%emt 0:01:33]} (35... a2 $17 {Strongly threatening ...Rd6.} 36. Ra1 Rd6) 36. g4 {[%emt 0:00:44]} (36. Ra1 $11 {keeps the balance.}) 36... Rf8 $17 {[%emt 0:00:54]} 37. Bb3 {[%emt 0:00:33][%cal Og4g5]} c6 {[%emt 0:01:37]} (37... Re8+ $1 $17 38. Kd3 Ne4) 38. f4 $15 {[%emt 0:07:56]} Re8+ {[%emt 0:00:19]} 39. Kf3 {[%emt 0:08:19]} (39. Kd3 $15 Ne4 40. Rh2) 39... Ne2 $17 {[%emt 0:00:40]} 40. Rd1 {[%emt 0:02:26] Against Nd4+} (40. Ba2 $17 Nd4+ 41. Kg3) 40... c5 $1 $19 {[%emt 0:00:15]} 41. Bc4 {[%emt 0:11:18]} Nd4+ {[%emt 0:00:44]} 42. Kf2 {[%emt 0:03:34]} Re4 {[%emt 0:03:30]} 43. Kg3 {[%emt 0:02:56]} Re3+ {[%emt 0:03:24]} 44. Kg2 {[%emt 0:00:03]} b5 {[%emt 0:02:44]} 45. Bf7 {[%emt 0:00:54]} a2 $2 {[%emt 0:10:40]} ({Black should try} 45... Re7 $19 46. Bg6 Re2+ 47. Kg3 Re3+ 48. Kg2 Kc7) 46. g5 $1 $11 {[%emt 0:03:38]} hxg5 {[%emt 0:10:01]} 47. fxg5 {[%emt 0:01:54][%cal Bf4g5,Bg5g6,Bg6g7][%mdl 32]} Rd3 {[%emt 0:04:00]} 48. Ra1 {[%emt 0:01:18]} Nf3 $2 {[%emt 0:00:25][%mdl 8192]} (48... Nf5 $1 $11) 49. g6 $18 {[%emt 0:01:06] Black must now prevent g7.} Nh4+ {[%emt 0:00:12] [#]} 50. Kh2 $1 {[%emt 0:04:04]} Nf5 {[%emt 0:00:58]} 51. g7 {[%emt 0:01:06]} Rd2+ $2 {[%emt 0:00:21]} (51... Nh6 52. Rxa2 Rd4) 52. Kh3 {[%emt 0:02:38]} Rd3+ {[%emt 0:00:17]} 53. Kh2 $2 {[%emt 0:00:24]} (53. Kg4 Nh6+ 54. Kf4) 53... Rd2+ {[%emt 0:00:13] [#]} (53... Nxg7 $2 54. h6 Nf5 55. h7 Rd2+ 56. Kh1 $18 (56. Kg1 Rd8 $14)) 54. Kh3 $2 {[%emt 0:00:18]} (54. Kh1 $1 Nh6 55. g8=Q+ (55. Bxa2 Rd4 $14) (55. Rxa2 Rxa2 56. Bxa2 c4 $18) 55... Nxg8 56. Bxg8 (56. Rxa2 Rxa2 57. Bxa2 c4 $17)) 54... Rd3+ $1 {[%emt 0:00:01]} (54... Nxg7 $2 55. h6 Nf5 56. h7 Rd3+ 57. Kh2 Rd2+ 58. Kh3 (58. Kg1 Rd8 $14) 58... Rd3+ 59. Kh2 Rd2+ 60. Kh1 $18 (60. Kg1 Rd8 $11)) 55. Kg4 {[%emt 0:02:37]} Nxg7 {[%emt 0:01:39]} (55... Nh6+ 56. Kf4 Kb7) 56. h6 {[%emt 0:00:07] White is clearly winning.} Rd2 {[%emt 0:00:32]} 57. Rxa2 {[%emt 0:00:25]} Rd1 {[%emt 0:00:22]} 58. Rg2 {[%emt 0:00:55]} Rd4+ {[%emt 0:00:38]} 59. Kg5 {[%emt 0:00:25] Weighted Error Value: White=0.47/Black=0.35} 1-0

[Event "Austrian Championship 2022"]
[Site "Vienna"]
[Date "2022.08.14"]
[Round "3.8"]
[White "Miazhynski, Michael"]
[Black "Balint, Peter"]
[Result "1-0"]
[ECO "B22"]
[WhiteElo "1994"]
[BlackElo "2051"]
[Annotator "NA RC"]
[PlyCount "131"]
[EventDate "2022.08.12"]
[EventType "swiss"]
[EventCountry "AUT"]
[SourceTitle "playchess.com"]
[Source "ChessBase"]
[SourceQuality "1"]
[TimeControl "40/5400+30:1800+30"]

1. e4 {[%emt 0:00:02]} c5 {[%emt 0:00:04]} 2. Nf3 {[%emt 0:00:05]} e6 {[%emt 0:00:02]} 3. c3 {[%emt 0:00:12]} d5 {[%emt 0:00:07]} 4. exd5 {[%emt 0:00:51]} Qxd5 {[%emt 0:00:09]} 5. d4 {[%emt 0:00:16]} Nc6 {[%emt 0:00:19]} 6. Be2 {[%emt 0:01:52]} Nf6 {[%emt 0:00:47]} 7. O-O {[%emt 0:00:14]} Be7 {[%emt 0:00:40]} 8. Be3 $11 {[%emt 0:05:33]} cxd4 {[%emt 0:00:33]} 9. cxd4 {[%emt 0:02:30]} O-O {[%emt 0:00:26]} 10. Nc3 {[%emt 0:00:13]} Qd6 {[%emt 0:01:10]} 11. Rc1 {[%emt 0:09:12]} a6 {[%emt 0:05:33]} 12. Qd2 {[%emt 0:02:15]} Nb4 {[%emt 0:06:46]} 13. Bf4 {[%emt 0:01:38]} Qd8 {[%emt 0:00:23]} 14. Ne5 {[%emt 0:01:01]} Nbd5 {[%emt 0:02:53]} 15. Bf3 {[%emt 0:05:34]} Nxf4 {[%emt 0:07:39]} 16. Qxf4 {[%emt 0:00:02]} Bd6 {[%emt 0:04:03]} 17. Rfd1 {[%emt 0:03:32]} Qe7 {[%emt 0:01:31]} 18. Qe3 {[%emt 0:02:32]} Rb8 {[%emt 0:00:52]} 19. a3 {[%emt 0:08:36]} Bd7 {[%emt 0:03:43]} 20. d5 {[%emt 0:04:44]} Rfe8 {[%emt 0:05:21]} 21. Nxd7 {[%emt 0:05:26]} Qxd7 {[%emt 0:00:16]} 22. dxe6 {[%emt 0:00:07]} Rxe6 {[%emt 0:00:04]} 23. Qa7 {[%emt 0:06:16]} Qe7 {[%emt 0:04:09]} 24. Nd5 {[%emt 0:04:53]} Nxd5 {[%emt 0:03:41]} 25. Bxd5 {[%emt 0:00:46]} Re5 {[%emt 0:09:44]} 26. Qxb8+ {[%emt 0:06:56]} Bxb8 {[%emt 0:00:06]} 27. Rc8+ {[%emt 0:00:04]} Qe8 {[%emt 0:01:39]} 28. Rxe8+ {[%emt 0:00:17]} Rxe8 {[%emt 0:00:03]} 29. Bxb7 {[%emt 0:00:10]} a5 {[%emt 0:00:35]} 30. b4 {[%emt 0:01:04]} axb4 {[%emt 0:00:48]} 31. axb4 {[%emt 0:00:03]} Kf8 {[%emt 0:00:51]} 32. b5 {[%emt 0:02:38]} Ba7 {[%emt 0:00:51]} 33. Bc6 {[%emt 0:00:03]} Rc8 {[%emt 0:02:12]} 34. Rd7 {[%emt 0:01:29]} Bc5 {[%emt 0:01:17]} 35. g3 {[%emt 0:00:14]} Rb8 {[%emt 0:05:07]} 36. Kg2 {[%emt 0:01:13]} f6 {[%emt 0:02:36]} 37. h4 {[%emt 0:01:14]} Be7 {[%emt 0:01:40]} 38. Kf3 {[%emt 0:02:11]} Kf7 {[%emt 0:02:01]} 39. Bd5+ {[%emt 0:02:20]} Ke8 {[%emt 0:00:38]} 40. Ra7 {[%emt 0:00:57]} h5 {[%emt 0:06:18]} 41. Ke4 {[%emt 0:35:17]} g6 {[%emt 0:30:31]} 42. Kd4 {[%emt 0:02:32]} Kf8 {[%emt 0:07:50]} 43. Kc4 {[%emt 0:07:19]} g5 {[%emt 0:01:30]} 44. hxg5 {[%emt 0:05:28]} fxg5 {[%emt 0:00:05]} 45. Ra6 {[%emt 0:00:00]} Kg7 {[%emt 0:00:00]} 46. Re6 {[%emt 0:00:00]} Bd8 {[%emt 0:00:00]} 47. Re8 {[%emt 0:00:00]} Kf6 {[%emt 0:00:00]} 48. b6 {[%emt 0:00:00]} g4 {[%emt 0:00:00]} 49. b7 {[%emt 0:00:00]} Bc7 {[%emt 0:00:00]} 50. Re6+ {[%emt 0:00:00]} Kg5 {[%emt 0:00:00]} 51. Re7 {[%emt 0:00:32]} Bd6 {[%emt 0:00:00]} 52. Rd7 {[%emt 0:00:17]} Be5 {[%emt 0:00:00]} 53. Re7 {[%emt 0:00:58]} Bd6 {[%emt 0:00:00]} 54. Rh7 {[%emt 0:00:21]} Kg6 {[%emt 0:00:00]} 55. Rd7 {[%emt 0:00:45]} Be5 {[%emt 0:00:00]} 56. Re7 {[%emt 0:00:55]} Kf5 {[%emt 0:00:00]} 57. Rh7 {[%emt 0:00:47]} Kg6 {[%emt 0:00:00]} 58. Be4+ {[%emt 0:00:15]} Kf6 {[%emt 0:00:00]} 59. Rxh5 {[%emt 0:00:22]} Rg8 {[%emt 0:02:18]} 60. Rf5+ {[%emt 0:00:58]} Ke6 {[%emt 0:00:13]} 61. Bd5+ {[%emt 0:00:30]} Kxf5 {[%emt 0:00:07]} 62. Bxg8 {[%emt 0:00:04]} Bb8 {[%emt 0:00:04]} 63. Kd5 {[%emt 0:00:10]} Ba7 {[%emt 0:00:15]} 64. Be6+ {[%emt 0:00:19]} Kg5 {[%emt 0:01:16]} 65. Kc6 {[%emt 0:00:07]} Bb8 {[%emt 0:00:16]} 66. Kd7 {[%emt 0:00:05]} 1-0